bitfinex/quotes_SOLUSD_20251124
["timestamp","ask_amount","ask_price","bid_price","bid_amount"]
[1764001462035,5.15125966,133.15,133.14,15.2950713]
[1764001462506,5.15125966,133.16,133.14,15.2950713]
[1764001462705,0.68,133.17,133.15,5.50624361]
[1764001463023,5.15125966,133.16,133.14,9.78882769]
[1764001463230,5.15125966,133.15,133.14,9.78882769]
[1764001463417,5.15125966,133.15,133.14,15.27860734]
[1764001463929,5.15125966,133.17,133.15,9.93098926]
[1764001464134,5.15125966,133.18,133.17,9.78882769]
[1764001464329,5.15125966,133.18,133.17,15.27860734]
[1764001464534,12.27731112,133.18,133.16,3.38]
[1764001464718,12.27731112,133.17,133.16,3.38]
[1764001465124,12.27731112,133.17,133.11,12.27731112]
[1764001465325,0.78,133.2,133.13,62.27731112]
[1764001465326,12.27731112,133.19,133.13,62.27731112]
[1764001465512,0.1,133.2,133.13,50.0]
[1764001465714,12.27731112,133.18,133.13,50.0]
[1764001466045,12.27731112,133.17,133.14,26.28811776]
[1764001466219,12.27731112,133.17,133.15,3.38]
[1764001466411,0.1,133.2,133.15,3.38]
[1764001466611,12.27731112,133.17,133.16,0.14216157]
[1764001467948,12.27731112,133.17,133.15,3.38]
[1764001468262,12.27731112,133.16,133.15,4.21216157]
[1764001468562,12.27731112,133.16,133.15,3.52216157]
[1764001468764,12.27731112,133.16,133.15,0.14216157]
[1764001469354,12.27731112,133.16,133.14,13.16882769]
[1764001469549,12.27731112,133.15,133.14,13.31098926]
[1764001471852,0.68,133.18,133.14,13.31098926]
[1764001472062,12.27731112,133.16,133.14,13.31098926]
[1764001472352,12.27731112,133.15,133.12,0.14216157]
[1764001472540,12.27731112,133.13,133.12,3.52216157]
[1764001472737,12.27731112,133.13,133.12,3.38]
[1764001472951,12.27731112,133.13,133.12,13.16882769]
[1764001477463,12.27731112,133.13,133.12,9.78882769]
[1764001477967,12.27731112,133.13,133.12,13.16882769]
[1764001478184,12.27731112,133.13,133.08,0.69]
[1764001478185,12.95731112,133.13,133.08,0.69]
[1764001478379,0.68,133.12,133.09,9.78882769]
[1764001479473,7.84504858,133.1,133.09,9.78882769]
[1764001484680,3.29455046,133.1,133.09,9.78882769]
[1764001485767,0.68,133.12,133.09,9.78882769]
[1764001485978,3.29455046,133.1,133.09,9.78882769]
[1764001487261,15.27820183,133.21,133.09,18.13458571]
[1764001487485,3.29455046,133.12,133.11,9.78882769]
[1764001488557,3.29455046,133.12,133.11,9.93098926]
[1764001488878,3.29455046,133.12,133.11,9.78882769]
[1764001489067,13.82820184,133.14,133.11,9.78882769]
[1764001489269,0.65,133.13,133.11,9.78882769]
[1764001489495,3.29455046,133.12,133.11,9.78882769]
[1764001490991,3.29455046,133.13,133.11,10.50882769]
[1764001491594,3.29455046,133.14,133.13,0.14216157]
[1764001491797,3.29455046,133.14,133.13,3.52216157]
[1764001492001,3.29455046,133.14,133.13,4.24216157]
[1764001492208,3.29455046,133.14,133.13,3.52216157]
[1764001493499,16.308864,133.18,133.14,9.78882769]
[1764001493696,3.29455046,133.15,133.14,9.78882769]
[1764001494485,3.29455046,133.17,133.15,0.14216157]
[1764001494687,3.29455046,133.16,133.15,0.85216157]
[1764001494885,3.29455046,133.16,133.15,10.64098926]
[1764001495085,3.29455046,133.16,133.15,14.02098926]
[1764001495983,0.77,133.2,133.15,14.02098926]
[1764001496189,0.77,133.2,133.17,9.78882769]
[1764001496517,0.77,133.2,133.16,0.14216157]
[1764001496690,0.77,133.2,133.17,9.78882769]
[1764001496890,0.1,133.2,133.18,0.14216157]
[1764001497213,0.1,133.2,133.19,9.78882769]
[1764001497415,3.39455046,133.2,133.19,9.78882769]
[1764001497710,0.1,133.2,133.19,9.78882769]
[1764001497891,3.39455046,133.2,133.19,9.78882769]
[1764001498694,3.39455046,133.2,133.17,4.21216157]
[1764001499000,3.29455046,133.18,133.17,4.21216157]
[1764001499607,0.1,133.2,133.17,4.21216157]
[1764001499817,3.29455046,133.18,133.17,4.21216157]
[1764001500610,0.1,133.2,133.17,4.21216157]
[1764001500821,0.1,133.2,133.17,3.50216157]
[1764001501140,16.408864,133.25,133.2,9.93098926]
[1764001501141,0.1,133.25,133.2,9.93098926]
[1764001501296,3.39455046,133.25,133.22,9.78882769]
[1764001501492,3.39455046,133.25,133.23,0.14216157]
[1764001501493,0.77,133.25,133.23,0.14216157]
[1764001501714,0.67,133.24,133.22,13.14882769]
[1764001501896,0.1,133.25,133.22,0.14216157]
[1764001502101,0.1,133.25,133.24,9.93098926]
[1764001502402,0.1,133.25,133.24,13.88015226]
[1764001502600,0.1,133.25,133.24,2.70364826]
[1764001502800,0.1,133.25,133.24,3.36]
[1764001503400,0.1,133.29,133.25,50.0]
[1764001503602,0.1,133.29,133.27,53.29455046]
[1764001503801,3.92452881,133.41,133.28,6.65455046]
[1764001504113,0.67,133.36,133.29,3.36]
[1764001504299,0.67,133.41,133.29,100.0]
[1764001504499,7.81302692,133.36,133.3,3.36]
[1764001504709,7.81302692,133.38,133.32,17.74401618]
[1764001504908,0.67,133.41,133.38,9.78882769]
[1764001505103,7.81302692,133.39,133.29,100.0]
[1764001505304,7.81302692,133.34,133.31,9.93098926]
[1764001505515,0.67,133.39,133.31,9.93098926]
[1764001505695,7.81302692,133.34,133.33,0.14216157]
[1764001505901,7.81302692,133.34,133.33,5.43703849]
[1764001506215,0.67,133.34,133.32,9.78882769]
[1764001506425,7.81302692,133.33,133.32,9.93098926]
[1764001506727,7.81302692,133.33,133.26,3.36]
[1764001507022,0.67,133.32,133.27,5.43739629]
[1764001507209,7.81302692,133.29,133.28,5.57955786]
[1764001507410,7.81302692,133.29,133.28,5.43739629]
[1764001507628,0.67,133.32,133.29,0.14216157]
[1764001507814,0.67,133.32,133.27,9.78882769]
[1764001508008,16.308864,133.33,133.28,5.70371718]
[1764001508210,0.67,133.33,133.3,9.78882769]
[1764001508412,24.12189092,133.36,133.3,9.78882769]
[1764001508618,0.67,133.33,133.28,0.14216157]
[1764001508820,7.81302692,133.31,133.3,9.93098926]
[1764001509003,7.81302692,133.31,133.3,15.35899255]
[1764001509202,7.81302692,133.32,133.3,15.35899255]
[1764001509398,0.67,133.35,133.3,9.93098926]
[1764001509604,0.67,133.35,133.3,0.14216157]
[1764001510313,7.81302692,133.32,133.3,0.41216157]
[1764001510709,7.81302692,133.33,133.3,0.41216157]
[1764001510923,3.36,133.38,133.36,16.308864]
[1764001510924,7.81302692,133.38,133.36,16.308864]
[1764001511225,7.81302692,133.39,133.37,9.78882769]
[1764001511603,7.81302692,133.38,133.37,9.78882769]
[1764001511924,7.81302692,133.38,133.36,16.308864]
[1764001512111,8.48302692,133.37,133.34,0.14216157]
[1764001512314,7.81302692,133.37,133.35,9.93098926]
[1764001512511,0.67,133.43,133.38,26.09769169]
[1764001512512,7.81302692,133.39,133.38,26.09769169]
[1764001512712,7.81302692,133.4,133.39,9.78882769]
[1764001513111,0.67,133.42,133.38,0.14216157]
[1764001513314,7.81302692,133.4,133.38,0.14216157]
[1764001513712,7.81302692,133.39,133.37,9.78882769]
[1764001513911,7.81302692,133.44,133.37,9.78882769]
[1764001513912,7.81302692,133.38,133.37,9.78882769]
[1764001515101,15.67,133.45,133.38,0.14216157]
[1764001515303,15.67,133.45,133.38,0.41216157]
[1764001515304,0.67,133.44,133.38,0.41216157]
[1764001515502,7.81302692,133.41,133.38,0.41216157]
[1764001515698,7.81302692,133.4,133.38,0.14216157]
[1764001515902,7.81302692,133.41,133.38,0.14216157]
[1764001516124,7.81302692,133.42,133.39,9.78882769]
[1764001516306,15.67,133.45,133.39,9.78882769]
[1764001516307,7.81302692,133.41,133.39,9.78882769]
[1764001516622,7.81302692,133.41,133.38,0.14216157]
[1764001517233,7.81302692,133.41,133.39,9.78882769]
[1764001518028,7.81302692,133.4,133.39,9.93098926]
[1764001518230,7.81302692,133.4,133.37,9.78882769]
[1764001518412,7.81302692,133.38,133.37,9.78882769]
[1764001518926,0.67,133.38,133.32,13.41882769]
[1764001519127,7.81302692,133.37,133.33,0.27]
[1764001519431,7.81302692,133.36,133.34,26.09769169]
[1764001519629,0.67,133.38,133.35,0.14216157]
[1764001519818,0.67,133.38,133.34,23.80828076]
[1764001520013,0.67,133.38,133.33,9.78882769]
[1764001520929,7.81302692,133.34,133.33,9.78882769]
[1764001521128,7.81302692,133.35,133.33,9.78882769]
[1764001521508,8.48302692,133.34,133.33,9.78882769]
[1764001521705,8.48302692,133.34,133.29,7.50243829]
[1764001521909,7.81302692,133.31,133.29,11.13243829]
[1764001522223,7.81302692,133.32,133.3,0.14216157]
[1764001522533,7.81302692,133.32,133.29,11.13243829]
[1764001522919,0.67,133.34,133.29,11.13243829]
[1764001523114,16.308864,133.41,133.3,10.05882769]
[1764001523428,0.67,133.37,133.31,0.14216157]
[1764001523631,0.67,133.37,133.33,9.78882769]
[1764001523926,0.67,133.37,133.31,7.64329677]
[1764001524137,0.67,133.37,133.31,7.5011352]
[1764001524734,7.81302692,133.32,133.31,9.78882769]
[1764001525237,8.48302692,133.32,133.31,9.78882769]
[1764001525610,7.81302692,133.32,133.31,9.78882769]
[1764001526431,0.67,133.34,133.31,9.78882769]
[1764001526432,7.81302692,133.33,133.31,17.29014041]
[1764001526639,164.4,133.43,133.33,0.14216157]
[1764001526812,7.81302692,133.36,133.33,0.14216157]
[1764001527018,7.81302692,133.34,133.32,9.78882769]
[1764001527430,7.81302692,133.35,133.32,9.78882769]
[1764001527650,7.81302692,133.36,133.34,9.78882769]
[1764001527949,0.67,133.38,133.34,9.78882769]
[1764001528138,7.81302692,133.37,133.34,9.78882769]
[1764001528526,7.81302692,133.37,133.34,10.05882769]
[1764001529053,7.81302692,133.37,133.34,9.78882769]
[1764001529426,7.81302692,133.36,133.34,9.78882769]
[1764001529733,7.81302692,133.36,133.35,9.78882769]
[1764001530223,7.81302692,133.36,133.34,7.49962087]
[1764001530423,7.81302692,133.35,133.33,0.14216157]
[1764001530639,7.81302692,133.34,133.32,9.78882769]
[1764001530840,16.308864,133.4,133.32,9.78882769]
[1764001530841,7.81302692,133.33,133.32,9.78882769]
[1764001531052,7.81302692,133.33,133.3,17.29049573]
[1764001531254,7.81302692,133.31,133.3,17.29069069]
[1764001531554,7.81302692,133.31,133.3,17.43285226]
[1764001531768,0.67,133.38,133.31,0.14216157]
[1764001531927,7.81302692,133.36,133.33,9.78882769]
[1764001532129,8.48302692,133.36,133.33,9.78882769]
[1764001532323,7.81302692,133.35,133.33,9.78882769]
[1764001532737,7.81302692,133.37,133.33,10.05882769]
[1764001533061,7.81302692,133.36,133.33,10.05882769]
[1764001533223,7.81302692,133.35,133.33,9.78882769]
[1764001533633,7.81302692,133.34,133.33,7.64216169]
[1764001534056,7.81302692,133.35,133.33,7.64216169]
[1764001534256,7.81302692,133.35,133.33,7.64234264]
[1764001534550,7.81302692,133.36,133.33,7.64234264]
[1764001534735,7.81302692,133.35,133.33,7.64234264]
[1764001535243,0.67,133.38,133.33,7.64234264]
[1764001535446,7.81302692,133.36,133.33,7.64234264]
[1764001535849,7.81302692,133.37,133.34,9.78882769]
[1764001536047,7.81302692,133.38,133.34,10.05882769]
[1764001536251,7.81302692,133.37,133.34,9.78882769]
[1764001536451,0.67,133.38,133.34,9.78882769]
[1764001536759,7.81302692,133.37,133.34,9.78882769]
[1764001537263,7.81302692,133.38,133.35,0.14216157]
[1764001537964,8.48302692,133.38,133.36,9.78882769]
[1764001538453,7.81302692,133.37,133.36,9.78882769]
[1764001538634,12.24179272,133.37,133.36,9.78882769]
[1764001539158,0.67,133.42,133.36,9.93098926]
[1764001539459,12.24179272,133.4,133.36,10.05882769]
[1764001539666,15.0,133.45,133.37,0.41216157]
[1764001539667,0.67,133.44,133.37,0.41216157]
[1764001539835,12.24179272,133.43,133.4,0.14216157]
[1764001540036,12.24179272,133.42,133.4,0.14216157]
[1764001540247,0.67,133.44,133.4,0.14216157]
[1764001540436,12.24179272,133.42,133.4,0.14216157]
[1764001540833,12.91179272,133.41,133.39,13.14882769]
[1764001541034,12.24179272,133.4,133.38,0.14216157]
[1764001541379,12.24179272,133.39,133.37,9.78882769]
[1764001541540,12.24179272,133.39,133.37,17.28670084]
[1764001541743,31.308864,133.45,133.36,17.28722069]
[1764001541744,12.91179272,133.38,133.36,17.28722069]
[1764001541941,12.24179272,133.37,133.33,3.36]
[1764001542142,12.24179272,133.35,133.34,9.78882769]
[1764001542340,0.67,133.36,133.34,9.78882769]
[1764001542580,12.24179272,133.35,133.34,9.78882769]
[1764001543437,12.91179272,133.36,133.34,9.78882769]
[1764001544138,12.24179272,133.36,133.34,17.28839108]
[1764001545570,12.91179272,133.35,133.32,20.64933602]
[1764001545939,12.24179272,133.35,133.33,9.78882769]
[1764001546133,12.91179272,133.38,133.34,0.14216157]
[1764001546640,12.24179272,133.37,133.34,0.14216157]
[1764001547346,16.308864,133.42,133.36,9.78882769]
[1764001547545,12.24179272,133.38,133.36,9.78882769]
[1764001548452,12.24179272,133.4,133.37,0.14216157]
[1764001548646,12.24179272,133.39,133.36,9.78882769]
[1764001548855,12.24179272,133.38,133.36,9.78882769]
[1764001549061,12.24179272,133.37,133.36,9.78882769]
[1764001549372,0.66,133.42,133.36,17.55732798]
[1764001549580,12.24179272,133.4,133.36,17.28732798]
[1764001549781,0.66,133.41,133.36,36.03357872]
[1764001549782,12.24179272,133.38,133.36,36.03357872]
[1764001549969,12.24179272,133.37,133.36,9.78882769]
[1764001550285,12.24179272,133.38,133.36,17.28732798]
[1764001551263,12.90179272,133.38,133.36,17.28732798]
[1764001551880,12.90179272,133.37,133.35,7.4988776]
[1764001552081,12.24179272,133.36,133.35,17.28770529]
[1764001552280,12.90179272,133.37,133.35,17.28770529]
[1764001552956,12.96179272,133.36,133.34,17.28832177]
[1764001553164,12.24179272,133.37,133.34,36.03738431]
[1764001553780,12.96179272,133.37,133.34,36.03738431]
[1764001554161,16.308864,133.43,133.34,9.78882769]
[1764001554362,12.24179272,133.35,133.34,9.78882769]
[1764001554763,12.96179272,133.35,133.34,17.2884527]
[1764001555271,12.24179272,133.36,133.34,17.2884527]
[1764001555778,12.96179272,133.36,133.34,17.2884527]
[1764001557779,12.96179272,133.36,133.35,5.47573485]
[1764001561770,12.96179272,133.38,133.35,12.97479746]
[1764001562090,12.96179272,133.38,133.36,5.47573485]
[1764001562389,19.668864,133.42,133.37,5.47573485]
[1764001562601,19.668864,133.42,133.33,22.37989522]
[1764001562602,19.668864,133.42,133.38,5.47573485]
[1764001562753,0.72,133.41,133.39,5.47573485]
[1764001563087,0.72,133.41,133.34,7.49962064]
[1764001563293,0.72,133.41,133.35,5.48956515]
[1764001563591,12.24179272,133.37,133.36,5.48957871]
[1764001564092,12.96179272,133.37,133.36,5.48957871]
[1764001566133,12.24179272,133.37,133.36,5.48957871]
[1764001566527,12.96179272,133.37,133.36,5.48957871]
[1764001566729,12.24179272,133.37,133.36,12.988079]
[1764001567726,0.72,133.39,133.36,22.77690669]
[1764001567727,12.96179272,133.39,133.36,22.77690669]
[1764001567917,12.96179272,133.39,133.37,5.48957871]
[1764001568108,12.96179272,133.39,133.38,5.48957871]
[1764001572032,0.72,133.41,133.38,12.98695462]
[1764001572251,12.24179272,133.4,133.39,5.48957871]
[1764001572722,12.96179272,133.41,133.39,5.48957871]
[1764001572916,12.96179272,133.41,133.4,5.48957871]
[1764001575001,3.36,133.44,133.4,5.48957871]
[1764001575202,0.72,133.42,133.41,5.48957871]
[1764001575934,0.72,133.43,133.41,5.48957871]
[1764001576141,0.72,133.43,133.42,5.48957871]
[1764001576335,12.96179272,133.43,133.42,5.48957871]
[1764001579514,15.0,133.45,133.42,13.25461116]
[1764001579728,27.24179272,133.45,133.43,5.48957871]
[1764001579942,15.0,133.45,133.44,5.48957871]
[1764001580834,15.72,133.45,133.44,5.48957871]
[1764001581029,27.24179272,133.45,133.44,5.48957871]
[1764001581232,15.0,133.45,133.44,15.2784064]
[1764001581428,15.0,133.45,133.44,22.91457276]
[1764001581621,15.0,133.45,133.44,23.18457276]
[1764001582621,15.0,133.45,133.44,26.54457276]
[1764001584226,1e-08,133.45,133.44,35.42636548]
[1764001584549,1e-08,133.45,133.44,26.54457276]
[1764001585048,1e-08,133.45,133.44,23.18457276]
[1764001585232,1e-08,133.45,133.44,39.53576595]
[1764001585438,1e-08,133.45,133.44,27.29397323]
[1764001585744,1e-08,133.45,133.44,39.53576595]
[1764001587734,0.1,133.5,133.44,39.53576595]
[1764001587949,0.1,133.5,133.49,0.14216157]
[1764001588155,0.1,133.5,133.49,8.99174028]
[1764001588647,12.99179272,133.5,133.49,8.84957871]
[1764001588851,0.1,133.5,133.49,18.6384064]
[1764001589156,0.1,133.5,133.49,16.34077655]
[1764001589157,0.75,133.5,133.49,16.34077655]
[1764001589523,12.99179272,133.5,133.49,8.84957871]
[1764001589933,12.99179272,133.5,133.49,5.48957871]
[1764001590657,12.99179272,133.5,133.47,29.59985326]
[1764001590828,12.99179272,133.5,133.48,5.43497768]
[1764001590829,12.89179272,133.49,133.48,5.43497768]
[1764001591131,0.65,133.49,133.48,5.43497768]
[1764001591335,0.65,133.49,133.48,22.71556443]
[1764001591723,12.89179272,133.49,133.48,15.22380537]
[1764001591925,12.89179272,133.49,133.4,0.72]
[1764001592142,12.24179272,133.44,133.41,26.23438126]
[1764001592350,12.24179272,133.44,133.41,19.668864]
[1764001592552,0.65,133.45,133.41,19.668864]
[1764001592854,12.89179272,133.45,133.41,20.388864]
[1764001593150,12.24179272,133.44,133.43,17.28339412]
[1764001593348,0.65,133.45,133.43,17.28339412]
[1764001593570,12.89179272,133.45,133.43,17.28339412]
[1764001594154,0.65,133.47,133.43,18.00339412]
[1764001594357,12.89179272,133.47,133.44,9.78882769]
[1764001594762,12.89179272,133.46,133.43,7.49456643]
[1764001595060,12.89179272,133.46,133.44,9.78882769]
[1764001595263,12.24179272,133.46,133.44,17.28244486]
[1764001595559,12.89179272,133.45,133.43,7.49437302]
[1764001595775,0.1,133.5,133.43,27.09280026]
[1764001595776,0.65,133.49,133.43,27.09280026]
[1764001596058,12.24179272,133.45,133.43,7.63638417]
[1764001596230,12.89179272,133.44,133.43,7.4942226]
[1764001596429,12.24179272,133.44,133.43,7.4942226]
[1764001597056,12.24179272,133.45,133.43,7.4942226]
[1764001597263,12.24179272,133.44,133.39,9.78882769]
[1764001597446,12.24179272,133.42,133.39,13.14882769]
[1764001597846,12.89179272,133.42,133.39,29.45769169]
[1764001598168,12.89179272,133.45,133.4,0.86216157]
[1764001598654,12.89179272,133.47,133.42,0.14216157]
[1764001598859,12.89179272,133.47,133.43,9.78882769]
[1764001599235,0.1,133.5,133.43,17.28327956]
[1764001599236,12.89179272,133.46,133.43,17.28327956]
[1764001599769,0.65,133.45,133.43,17.28327956]
[1764001600079,0.65,133.45,133.42,9.78882769]
[1764001600080,12.24179272,133.44,133.42,9.78882769]
[1764001600560,8.45465008,133.44,133.42,9.78882769]
[1764001600861,7.80465008,133.45,133.42,9.78882769]
[1764001601381,0.65,133.45,133.43,7.49456643]
[1764001601796,8.45465008,133.44,133.42,9.78882769]
[1764001601975,7.80465008,133.43,133.39,16.308864]
[1764001602273,8.45465008,133.42,133.39,7.49649466]
[1764001602477,7.80465008,133.42,133.39,7.49649466]
[1764001602684,0.65,133.47,133.4,18.31347777]
[1764001602837,0.65,133.46,133.42,9.78882769]
[1764001603260,0.65,133.46,133.43,7.49456643]
[1764001603472,8.45465008,133.46,133.42,9.78882769]
[1764001603646,7.80465008,133.45,133.42,9.78882769]
[1764001603851,7.80465008,133.44,133.42,9.78882769]
[1764001604057,7.80465008,133.44,133.43,5.44083794]
[1764001604261,8.45465008,133.44,133.43,5.44083794]
[1764001604469,7.80465008,133.45,133.43,5.44083794]
[1764001604758,7.80465008,133.45,133.44,5.44083794]
[1764001604937,8.45465008,133.45,133.44,5.44083794]
[1764001605334,8.45465008,133.45,133.43,5.44083794]
[1764001605749,0.65,133.45,133.43,12.93530155]
[1764001605961,0.1,133.5,133.44,5.44083794]
[1764001606163,8.45465008,133.48,133.45,9.78882769]
[1764001606466,8.45465008,133.48,133.44,5.58299951]
[1764001606467,7.80465008,133.47,133.46,5.44083794]
[1764001606665,8.45465008,133.47,133.46,5.44083794]
[1764001606840,8.45465008,133.47,133.44,15.22966563]
[1764001607042,0.65,133.47,133.45,5.44083794]
[1764001609284,0.1,133.5,133.46,19.25966563]
[1764001609569,8.57465008,133.5,133.47,5.44083794]
[1764001609783,7.80465008,133.49,133.48,5.44083794]
[1764001610067,0.67,133.49,133.47,5.44083794]
[1764001610371,8.47465008,133.48,133.44,17.28261801]
[1764001610569,8.47465008,133.48,133.45,5.44732161]
[1764001610752,0.67,133.47,133.46,5.44732161]
[1764001611262,8.47465008,133.48,133.46,5.44732161]
[1764001611464,8.47465008,133.48,133.47,5.44732161]
[1764001611651,7.80465008,133.48,133.47,5.44732161]
[1764001611988,0.67,133.47,133.45,12.94199555]
[1764001612276,0.67,133.47,133.46,5.44834236]
[1764001612856,0.69,133.49,133.46,5.44834236]
[1764001613058,0.69,133.49,133.47,5.44834236]
[1764001613259,0.69,133.49,133.48,5.44834236]
[1764001613482,0.69,133.49,133.46,5.44834236]
[1764001613650,0.69,133.49,133.47,5.44834236]
[1764001613976,0.69,133.49,133.48,5.44834236]
[1764001614276,8.49465008,133.49,133.47,5.44834236]
[1764001614445,8.49465008,133.49,133.45,7.49322876]
[1764001614446,8.49465008,133.49,133.48,5.44834236]
[1764001614665,7.80465008,133.49,133.48,5.44834236]
[1764001614872,7.80465008,133.49,133.46,5.44834236]
[1764001615072,0.69,133.48,133.47,5.44834236]
[1764001615452,7.90465008,133.5,133.47,5.44834236]
[1764001615672,0.69,133.49,133.48,5.44834236]
[1764001616053,0.69,133.49,133.47,5.44834236]
[1764001616257,0.69,133.49,133.48,5.44834236]
[1764001617274,8.49465008,133.49,133.48,5.44834236]
[1764001618773,3.96577716,133.49,133.48,5.44834236]
[1764001621459,17.0688858,133.49,133.48,5.44834236]
[1764001621664,17.0688858,133.49,133.42,17.28385132]
[1764001621866,3.27577716,133.46,133.43,5.46811289]
[1764001622069,3.27577716,133.46,133.44,5.46811289]
[1764001622388,0.69,133.46,133.45,5.46811289]
[1764001623478,0.69,133.49,133.45,5.46811289]
[1764001623660,3.96577716,133.49,133.46,5.46811289]
[1764001623862,3.96577716,133.49,133.47,5.46811289]
[1764001624085,0.1,133.5,133.45,9.78882769]
[1764001624388,3.37577716,133.5,133.46,12.95839711]
[1764001624557,4.06577716,133.5,133.47,5.46589234]
[1764001624887,4.06577716,133.5,133.48,5.46589234]
[1764001625071,3.37577716,133.5,133.49,5.46589234]
[1764001625276,0.1,133.5,133.49,15.25472003]
[1764001625457,0.1,133.5,133.49,16.0868816]
[1764001625657,0.1,133.55,133.51,0.14216157]
[1764001625966,0.1,133.55,133.53,9.78882769]
[1764001626169,0.1,133.55,133.54,5.46589234]
[1764001626380,0.1,133.55,133.54,12.95428533]
[1764001627267,0.1,133.55,133.54,23.57527459]
[1764001627587,0.1,133.55,133.54,26.93527459]
[1764001627978,0.1,133.55,133.54,22.74311302]
[1764001628370,0.1,133.58,133.54,23.57527459]
[1764001628690,0.1,133.58,133.57,34.02092076]
[1764001628892,0.1,133.58,133.57,42.8468131]
[1764001629072,0.1,133.58,133.57,43.5368131]
[1764001629389,0.69,133.67,133.62,9.78882769]
[1764001629588,0.69,133.67,133.63,5.46589234]
[1764001629760,0.69,133.67,133.64,5.46589234]
[1764001629962,7.7810675,133.66,133.65,5.46589234]
[1764001630261,7.7810675,133.66,133.59,0.69]
[1764001630262,7.7810675,133.66,133.58,3.36]
[1764001630466,7.7810675,133.61,133.59,5.41767519]
[1764001630671,7.7810675,133.6,133.52,0.69]
[1764001630860,7.7810675,133.57,133.53,16.27036487]
[1764001631062,7.7810675,133.58,133.55,9.78882769]
[1764001631261,7.7810675,133.57,133.56,5.42141108]
[1764001631473,7.7810675,133.57,133.51,0.69]
[1764001631474,7.7810675,133.57,133.51,10.849684]
[1764001631769,7.7810675,133.55,133.51,3.36]
[1764001631976,7.7810675,133.52,133.46,0.69]
[1764001632284,7.7810675,133.52,133.44,3.36]
[1764001632470,7.7810675,133.51,133.45,7.7810675]
[1764001632783,0.69,133.51,133.46,7.7810675]
[1764001632963,8.4710675,133.54,133.48,17.56989519]
[1764001633165,0.69,133.53,133.45,18.25989519]
[1764001633363,0.69,133.53,133.47,17.56989519]
[1764001633570,7.7810675,133.54,133.48,7.92322907]
[1764001633874,7.7810675,133.53,133.48,0.14216157]
[1764001634259,8.4710675,133.53,133.49,7.49119784]
[1764001634491,16.308864,133.57,133.49,7.49119784]
[1764001634712,0.69,133.52,133.49,7.49119784]
[1764001635170,8.4710675,133.54,133.49,7.49119784]
[1764001635592,8.4710675,133.53,133.49,7.49119784]
[1764001635818,7.7810675,133.54,133.49,7.49119784]
[1764001635981,0.69,133.56,133.49,7.49119784]
[1764001636183,8.4710675,133.56,133.5,17.56989519]
[1764001636386,7.7810675,133.55,133.51,7.49007564]
[1764001636684,8.4710675,133.55,133.51,7.49007564]
[1764001636878,0.69,133.54,133.51,7.49007564]
[1764001637490,8.4710675,133.54,133.51,7.49007564]
[1764001638880,0.69,133.54,133.51,7.49007564]
[1764001639274,0.69,133.54,133.52,9.78882769]
[1764001639992,7.7810675,133.53,133.5,9.78882769]
[1764001640307,7.7810675,133.51,133.48,17.28040632]
[1764001640603,7.7810675,133.5,133.48,17.28040632]
[1764001640903,7.7810675,133.58,133.48,17.28040632]
[1764001640904,7.7810675,133.51,133.48,17.28040632]
[1764001641213,7.7810675,133.5,133.46,7.49277773]
[1764001641382,7.7810675,133.5,133.47,9.78882769]
[1764001641578,0.69,133.5,133.47,9.78882769]
[1764001642102,0.69,133.5,133.46,7.49277773]
[1764001642300,0.69,133.5,133.47,9.78882769]
[1764001642709,8.4710675,133.5,133.45,0.69]
[1764001643009,8.4710675,133.5,133.46,9.78882769]
[1764001643204,0.7,133.49,133.46,9.78882769]
[1764001643905,8.4810675,133.49,133.45,7.49338309]
[1764001644213,8.4810675,133.49,133.45,9.78882769]
[1764001644396,7.7810675,133.46,133.38,16.308864]
[1764001644581,3.36,133.47,133.37,7.7810675]
[1764001644783,7.7810675,133.43,133.37,7.7810675]
[1764001645010,7.7810675,133.4,133.34,17.178864]
[1764001645304,7.7810675,133.39,133.34,0.2]
[1764001645478,7.7810675,133.38,133.34,0.2]
[1764001645681,0.7,133.38,133.34,0.2]
[1764001646102,0.7,133.38,133.34,15.48035616]
[1764001647187,8.4810675,133.41,133.35,18.23989519]
[1764001647393,8.4810675,133.41,133.37,9.78882769]
[1764001647911,0.7,133.4,133.35,18.23989519]
[1764001648995,0.7,133.4,133.36,7.49850029]
[1764001649185,0.7,133.4,133.37,9.78882769]
[1764001650605,0.7,133.4,133.37,7.49793016]
[1764001651115,8.4810675,133.42,133.37,15.94899766]
[1764001651305,8.4810675,133.42,133.38,9.78882769]
[1764001651501,0.7,133.41,133.38,9.78882769]